[Event "*** Titled Tuesday Blitz"]
[Site "Chess.com"]
[Date "2019.03.05"]
[Round "1"]
[White "HindsightIs2700"]
[Black "Awentrap"]
[Result "0-1"]
[WhiteElo "2306"]
[BlackElo "2674"]
[TimeControl "180+2"]
[EndTime "13:09:38 PST"]
[Termination "Awentrap won on time"]

1. e4 {[%clk 0:03:01.9]} 1... c5 {[%clk 0:02:58.7]} 2. Nf3 {[%clk 0:03:03]} 2...
e6 {[%clk 0:02:59.9]} 3. d4 {[%clk 0:03:04]} 3... cxd4 {[%clk 0:03:01.8]} 4.
Nxd4 {[%clk 0:03:05.5]} 4... Nc6 {[%clk 0:03:03.5]} 5. Nc3 {[%clk 0:03:06.1]}
5... Qc7 {[%clk 0:03:05.1]} 6. Be3 {[%clk 0:03:06.6]} 6... a6 {[%clk 0:03:06]}
7. Be2 {[%clk 0:03:07.3]} 7... Nf6 {[%clk 0:03:06.4]} 8. O-O {[%clk 0:03:08.4]}
8... Be7 {[%clk 0:03:07.1]} 9. f4 {[%clk 0:03:08.8]} 9... d6 {[%clk 0:03:08.1]}
10. a4 {[%clk 0:03:09.5]} 10... O-O {[%clk 0:03:08.6]} 11. Kh1 {[%clk
0:03:09.6]} 11... Bd7 {[%clk 0:02:59.5]} 12. Nb3 {[%clk 0:03:09.2]} 12... Rfc8
{[%clk 0:02:45.7]} 13. a5 {[%clk 0:03:10]} 13... Nb4 {[%clk 0:02:23.3]} 14. Bb6
{[%clk 0:02:44]} 14... Qb8 {[%clk 0:02:21.5]} 15. g4 {[%clk 0:02:28.3]} 15...
Bc6 {[%clk 0:02:12.9]} 16. Bf3 {[%clk 0:02:24]} 16... d5 {[%clk 0:02:10.3]} 17.
e5 {[%clk 0:02:17.4]} 17... Ne4 {[%clk 0:02:11]} 18. Nd4 {[%clk 0:02:09.8]}
18... Bd8 {[%clk 0:01:28.5]} 19. Nxc6 {[%clk 0:01:54.9]} 19... bxc6 {[%clk
0:01:12.4]} 20. Bxe4 {[%clk 0:01:26.5]} 20... Bxb6 {[%clk 0:01:05]} 21. Bxh7+
{[%clk 0:01:01.8]} 21... Kxh7 {[%clk 0:01:05.9]} 22. axb6 {[%clk 0:01:03.7]}
22... Qxb6 {[%clk 0:01:00.1]} 23. g5 {[%clk 0:01:02.3]} 23... g6 {[%clk
0:00:53.7]} 24. Rf3 {[%clk 0:00:53.3]} 24... Kg7 {[%clk 0:00:53.9]} 25. Na4
{[%clk 0:00:44.5]} 25... Qb5 {[%clk 0:00:36.1]} 26. c3 {[%clk 0:00:45.8]} 26...
a5 {[%clk 0:00:37.6]} 27. cxb4 {[%clk 0:00:45.5]} 27... axb4 {[%clk 0:00:39.5]}
28. b3 {[%clk 0:00:40.4]} 28... c5 {[%clk 0:00:36.9]} 29. Nb2 {[%clk 0:00:29.1]}
29... Rxa1 {[%clk 0:00:32.5]} 30. Qxa1 {[%clk 0:00:31]} 30... c4 {[%clk
0:00:34.1]} 31. Qa4 {[%clk 0:00:22.6]} 31... Qc5 {[%clk 0:00:33.1]} 32. Qd7
{[%clk 0:00:18.6]} 32... c3 {[%clk 0:00:26]} 33. Nd3 {[%clk 0:00:16.1]} 33... c2
{[%clk 0:00:26.9]} 34. Kg2 {[%clk 0:00:10.5]} 34... c1=Q {[%clk 0:00:25.6]} 35.
Nxc1 {[%clk 0:00:11.6]} 35... Qxc1 {[%clk 0:00:27.3]} 36. Qe7 {[%clk 0:00:10.7]}
36... Rc2+ {[%clk 0:00:23.8]} 37. Rf2 {[%clk 0:00:11.9]} 37... Rxf2+ {[%clk
0:00:23.7]} 38. Kxf2 {[%clk 0:00:13.3]} 38... Qxf4+ {[%clk 0:00:25.4]} 39. Kg2
{[%clk 0:00:14.5]} 39... Qe4+ {[%clk 0:00:24]} 40. Kf2 {[%clk 0:00:14.9]} 40...
Qxe5 {[%clk 0:00:23.8]} 41. h4 {[%clk 0:00:15.5]} 41... Qb2+ {[%clk 0:00:23.9]}
42. Kg1 {[%clk 0:00:16.7]} 42... Qc1+ {[%clk 0:00:23.1]} 43. Kg2 {[%clk
0:00:16.8]} 43... Qc2+ {[%clk 0:00:24.3]} 44. Kg1 {[%clk 0:00:17.8]} 44... Qd1+
{[%clk 0:00:25.5]} 45. Kg2 {[%clk 0:00:19]} 45... Qe2+ {[%clk 0:00:26.9]} 46.
Kg1 {[%clk 0:00:20]} 46... Qe3+ {[%clk 0:00:28.1]} 47. Kg2 {[%clk 0:00:20.3]}
47... Qe4+ {[%clk 0:00:29.5]} 48. Kg1 {[%clk 0:00:21.2]} 48... Qg4+ {[%clk
0:00:30.8]} 49. Kf1 {[%clk 0:00:20.7]} 49... Qf4+ {[%clk 0:00:31]} 50. Kg1
{[%clk 0:00:20.2]} 50... e5 {[%clk 0:00:31.1]} 51. Kg2 {[%clk 0:00:15.7]} 51...
e4 {[%clk 0:00:29.5]} 52. Qxb4 {[%clk 0:00:16.8]} 52... Qf3+ {[%clk 0:00:31]}
53. Kg1 {[%clk 0:00:17.7]} 53... e3 {[%clk 0:00:32.4]} 54. Qd4+ {[%clk 0:00:17]}
54... Kg8 {[%clk 0:00:33.7]} 55. Qd3 {[%clk 0:00:06.7]} 55... Qf2+ {[%clk
0:00:32.5]} 56. Kh1 {[%clk 0:00:08.1]} 56... e2 {[%clk 0:00:32.3]} 0-1

[Event "*** Titled Tuesday Blitz"]
[Site "Chess.com"]
[Date "2019.03.05"]
[Round "1"]
[White "j2806"]
[Black "mlchen"]
[Result "0-1"]
[WhiteElo "1817"]
[BlackElo "2466"]
[TimeControl "180+2"]
[EndTime "13:09:38 PST"]
[Termination "mlchen won by resignation"]

1. e4 {[%clk 0:03:01.9]} 1... e5 {[%clk 0:03:00.4]} 2. Nf3 {[%clk 0:03:02.4]}
2... Nc6 {[%clk 0:03:01.4]} 3. Bb5 {[%clk 0:02:55]} 3... a6 {[%clk 0:03:00.7]}
4. Ba4 {[%clk 0:02:55.7]} 4... Nf6 {[%clk 0:03:00]} 5. d3 {[%clk 0:02:55.5]}
5... b5 {[%clk 0:03:00.1]} 6. Bb3 {[%clk 0:02:55.4]} 6... Bc5 {[%clk 0:02:56.4]}
7. O-O {[%clk 0:02:55.5]} 7... h6 {[%clk 0:02:55.3]} 8. c3 {[%clk 0:02:49.9]}
8... Bb6 {[%clk 0:02:51.4]} 9. Nbd2 {[%clk 0:02:47.4]} 9... O-O {[%clk
0:02:51.3]} 10. h3 {[%clk 0:02:46.8]} 10... d6 {[%clk 0:02:47.4]} 11. Re1 {[%clk
0:02:46.9]} 11... Na5 {[%clk 0:02:35.8]} 12. Bc2 {[%clk 0:02:47.1]} 12... c5
{[%clk 0:02:36.5]} 13. Nf1 {[%clk 0:02:46.4]} 13... Nc6 {[%clk 0:02:33.4]} 14.
Ng3 {[%clk 0:02:44.2]} 14... Ne7 {[%clk 0:02:17.5]} 15. d4 {[%clk 0:02:37]}
15... cxd4 {[%clk 0:02:15.6]} 16. cxd4 {[%clk 0:02:33.4]} 16... Qc7 {[%clk
0:02:16.5]} 17. Be3 {[%clk 0:02:16.2]} 17... Ng6 {[%clk 0:01:56]} 18. dxe5
{[%clk 0:02:08]} 18... dxe5 {[%clk 0:01:46.4]} 19. Rc1 {[%clk 0:02:02.6]} 19...
Rd8 {[%clk 0:01:43.9]} 20. Qe2 {[%clk 0:01:51.2]} 20... Qa7 {[%clk 0:01:33.2]}
21. Bxb6 {[%clk 0:01:43.9]} 21... Qxb6 {[%clk 0:01:33.6]} 22. Red1 {[%clk
0:01:42.4]} 22... Be6 {[%clk 0:01:31.3]} 23. Rxd8+ {[%clk 0:01:31.1]} 23... Rxd8
{[%clk 0:01:31.7]} 24. Rd1 {[%clk 0:01:28.3]} 24... Nf4 {[%clk 0:01:13.8]} 25.
Qf1 {[%clk 0:01:15.7]} 25... Bc4 {[%clk 0:01:09.4]} 26. Rxd8+ {[%clk 0:01:07.8]}
26... Qxd8 {[%clk 0:01:10]} 27. Qd1 {[%clk 0:01:08.7]} 27... Qxd1+ {[%clk
0:00:47.9]} 28. Bxd1 {[%clk 0:01:06.1]} 28... Ng6 {[%clk 0:00:49.3]} 29. b3
{[%clk 0:01:01.9]} 29... Bd3 {[%clk 0:00:46.9]} 30. Nd2 {[%clk 0:00:49.5]} 30...
Nf4 {[%clk 0:00:47.1]} 31. Bf3 {[%clk 0:00:40.9]} 31... Kf8 {[%clk 0:00:45.7]}
32. Ngf1 {[%clk 0:00:39.3]} 32... Ke7 {[%clk 0:00:42.8]} 33. Kh2 {[%clk
0:00:37.8]} 33... Kd6 {[%clk 0:00:37.5]} 34. g3 {[%clk 0:00:38.2]} 34... Ne2
{[%clk 0:00:37.4]} 35. Ne3 {[%clk 0:00:34.7]} 35... g6 {[%clk 0:00:36.9]} 36.
Kg2 {[%clk 0:00:28.3]} 36... Nd4 {[%clk 0:00:33.6]} 37. Ng4 {[%clk 0:00:23]}
37... Ng8 {[%clk 0:00:20.4]} 38. Bd1 {[%clk 0:00:21.8]} 38... h5 {[%clk
0:00:18.2]} 39. Ne3 {[%clk 0:00:22.2]} 39... Ne7 {[%clk 0:00:19.4]} 40. f3
{[%clk 0:00:20.5]} 40... Kc5 {[%clk 0:00:18.7]} 41. Kf2 {[%clk 0:00:21.8]} 41...
Kb4 {[%clk 0:00:19.4]} 42. a4 {[%clk 0:00:22]} 42... Kc3 {[%clk 0:00:17.6]} 43.
Ke1 {[%clk 0:00:21.9]} 43... Nc2+ {[%clk 0:00:12.6]} 44. Nxc2 {[%clk 0:00:22.5]}
44... Bxc2 {[%clk 0:00:14.1]} 45. Bxc2 {[%clk 0:00:23.7]} 45... Kxc2 {[%clk
0:00:15.7]} 46. Ke2 {[%clk 0:00:25.2]} 46... Kc3 {[%clk 0:00:16.7]} 47. axb5
{[%clk 0:00:25.7]} 47... axb5 {[%clk 0:00:18]} 48. f4 {[%clk 0:00:27]} 48...
exf4 {[%clk 0:00:17.8]} 49. gxf4 {[%clk 0:00:28.2]} 49... Nc6 {[%clk 0:00:19.4]}
50. e5 {[%clk 0:00:26.4]} 50... Nd4+ {[%clk 0:00:20.5]} 51. Ke3 {[%clk 0:00:26]}
51... Nxb3 {[%clk 0:00:21.6]} 52. Nxb3 {[%clk 0:00:26.8]} 52... Kxb3 {[%clk
0:00:22.6]} 53. Ke4 {[%clk 0:00:27.7]} 53... Kc4 {[%clk 0:00:21.6]} 54. f5
{[%clk 0:00:29.3]} 54... gxf5+ {[%clk 0:00:23.1]} 55. Kxf5 {[%clk 0:00:30.5]}
55... Kd5 {[%clk 0:00:22.6]} 56. Kg5 {[%clk 0:00:31.5]} 56... Kxe5 {[%clk
0:00:23.4]} 57. Kxh5 {[%clk 0:00:32.8]} 57... b4 {[%clk 0:00:25]} 58. Kh6 {[%clk
0:00:30.9]} 58... Kf6 {[%clk 0:00:25.3]} 59. h4 {[%clk 0:00:31.8]} 59... b3
{[%clk 0:00:26.7]} 60. h5 {[%clk 0:00:33.1]} 60... b2 {[%clk 0:00:27.8]} 61. Kh7
{[%clk 0:00:34.2]} 61... b1=Q+ {[%clk 0:00:29]} 62. Kg8 {[%clk 0:00:35.4]} 62...
Qb8+ {[%clk 0:00:29.5]} 63. Kh7 {[%clk 0:00:33.5]} 63... Qg3 {[%clk 0:00:25.4]}
64. h6 {[%clk 0:00:33.4]} 64... Qg6+ {[%clk 0:00:26.6]} 0-1

[Event "*** Titled Tuesday Blitz"]
[Site "Chess.com"]
[Date "2019.03.05"]
[Round "1"]
[White "r31415"]
[Black "GMKrikor"]
[Result "0-1"]
[WhiteElo "2362"]
[BlackElo "2734"]
[TimeControl "180+2"]
[EndTime "13:09:41 PST"]
[Termination "GMKrikor won by resignation"]

1. e4 {[%clk 0:03:01.9]} 1... c5 {[%clk 0:02:56.4]} 2. Nf3 {[%clk 0:03:02.9]}
2... e6 {[%clk 0:02:52.3]} 3. d4 {[%clk 0:03:04.3]} 3... cxd4 {[%clk 0:02:54.2]}
4. Nxd4 {[%clk 0:03:05.9]} 4... Nc6 {[%clk 0:02:55.4]} 5. Nb5 {[%clk 0:03:06.2]}
5... d6 {[%clk 0:02:53]} 6. c4 {[%clk 0:03:07.1]} 6... a6 {[%clk 0:02:53.3]} 7.
N5c3 {[%clk 0:03:08.6]} 7... b6 {[%clk 0:02:52.5]} 8. Be2 {[%clk 0:03:10.5]}
8... Bb7 {[%clk 0:02:53.7]} 9. O-O {[%clk 0:03:11.4]} 9... Nf6 {[%clk
0:02:54.5]} 10. Bf4 {[%clk 0:03:11.2]} 10... Be7 {[%clk 0:02:51.7]} 11. Nd2
{[%clk 0:03:08.5]} 11... O-O {[%clk 0:02:51.3]} 12. Re1 {[%clk 0:03:09.7]} 12...
Nb8 {[%clk 0:02:52]} 13. Bf3 {[%clk 0:02:43.8]} 13... Qc7 {[%clk 0:02:47.2]} 14.
e5 {[%clk 0:01:58.7]} 14... dxe5 {[%clk 0:02:47.1]} 15. Bxe5 {[%clk 0:01:58.3]}
15... Qc8 {[%clk 0:02:47.7]} 16. Bxb7 {[%clk 0:01:38.4]} 16... Qxb7 {[%clk
0:02:49.6]} 17. Nde4 {[%clk 0:01:39]} 17... Nbd7 {[%clk 0:02:44.7]} 18. Bd6
{[%clk 0:01:19.9]} 18... Bxd6 {[%clk 0:02:40]} 19. Qxd6 {[%clk 0:01:19.3]} 19...
Rac8 {[%clk 0:02:36.1]} 20. b3 {[%clk 0:01:06.5]} 20... Nxe4 {[%clk 0:02:08.8]}
21. Nxe4 {[%clk 0:01:05.2]} 21... Nc5 {[%clk 0:02:00.9]} 22. Nxc5 {[%clk
0:00:59.6]} 22... Rxc5 {[%clk 0:02:02.8]} 23. Rad1 {[%clk 0:00:58.8]} 23... h6
{[%clk 0:02:01.1]} 24. Re3 {[%clk 0:00:50.7]} 24... Rfc8 {[%clk 0:01:51.9]} 25.
Red3 {[%clk 0:00:33.6]} 25... b5 {[%clk 0:01:48.2]} 26. cxb5 {[%clk 0:00:34.2]}
26... axb5 {[%clk 0:01:50.1]} 27. Qf4 {[%clk 0:00:35.3]} 27... Rf5 {[%clk
0:01:40.1]} 28. Qg3 {[%clk 0:00:29.6]} 28... Rc2 {[%clk 0:01:24.1]} 29. a4
{[%clk 0:00:26.2]} 29... bxa4 {[%clk 0:01:17]} 30. bxa4 {[%clk 0:00:28.1]} 30...
Rcxf2 {[%clk 0:01:11.7]} 31. Rd8+ {[%clk 0:00:15.6]} 31... Kh7 {[%clk
0:01:12.3]} 32. Qxf2 {[%clk 0:00:17.5]} 32... Rxf2 {[%clk 0:01:11.6]} 33. Kxf2
{[%clk 0:00:19.4]} 33... Qa7+ {[%clk 0:01:11.8]} 34. R1d4 {[%clk 0:00:13.8]}
34... e5 {[%clk 0:01:10.8]} 35. Rd7 {[%clk 0:00:14.9]} 35... Qc5 {[%clk
0:01:12.1]} 36. Rd5 {[%clk 0:00:15.6]} 36... Qc2+ {[%clk 0:00:47.4]} 37. Rd2
{[%clk 0:00:16.9]} 37... Qxa4 {[%clk 0:00:48.8]} 38. Rd7 {[%clk 0:00:17.8]}
38... f6 {[%clk 0:00:47.6]} 39. g3 {[%clk 0:00:14.2]} 39... Qc4 {[%clk
0:00:33.4]} 40. Rb7 {[%clk 0:00:07.8]} 40... Qc5+ {[%clk 0:00:34.6]} 41. Kf1
{[%clk 0:00:09]} 41... Qc1+ {[%clk 0:00:28.5]} 42. Ke2 {[%clk 0:00:10.2]} 42...
Qh1 {[%clk 0:00:22.9]} 43. Rdd7 {[%clk 0:00:09.1]} 43... Qxh2+ {[%clk
0:00:24.3]} 44. Kf3 {[%clk 0:00:10.7]} 44... e4+ {[%clk 0:00:21.3]} 45. Kf4
{[%clk 0:00:05.7]} 45... Qf2+ {[%clk 0:00:20.1]} 46. Kg4 {[%clk 0:00:07]} 46...
Qf3+ {[%clk 0:00:20]} 47. Kh4 {[%clk 0:00:05.6]} 47... Qh1+ {[%clk 0:00:15.9]}
48. Kg4 {[%clk 0:00:06.9]} 48... h5+ {[%clk 0:00:17.3]} 49. Kf5 {[%clk
0:00:06.2]} 49... Qf3+ {[%clk 0:00:18.3]} 50. Ke6 {[%clk 0:00:07.3]} 50... Qxg3
{[%clk 0:00:18.9]} 51. Rd8 {[%clk 0:00:08.8]} 51... e3 {[%clk 0:00:18.7]} 52.
Rbb8 {[%clk 0:00:05.2]} 52... e2 {[%clk 0:00:17]} 53. Kf7 {[%clk 0:00:06.5]}
53... Qg6+ {[%clk 0:00:16.8]} 54. Kf8 {[%clk 0:00:06.1]} 54... e1=Q {[%clk
0:00:16.7]} 0-1

[Event "*** Titled Tuesday Blitz"]
[Site "Chess.com"]
[Date "2019.03.05"]
[Round "1"]
[White "BIG_Pirate"]
[Black "Divertissement"]
[Result "0-1"]
[WhiteElo "2368"]
[BlackElo "2739"]
[TimeControl "180+2"]
[EndTime "13:09:44 PST"]
[Termination "Divertissement won by resignation"]

1. Nf3 {[%clk 0:03:01.9]} 1... c5 {[%clk 0:03:01.2]} 2. c4 {[%clk 0:03:03]} 2...
b6 {[%clk 0:03:02.4]} 3. g3 {[%clk 0:03:03.3]} 3... Bb7 {[%clk 0:03:03.8]} 4.
Bg2 {[%clk 0:03:04.9]} 4... Nf6 {[%clk 0:03:04.5]} 5. Nc3 {[%clk 0:03:06]} 5...
g6 {[%clk 0:03:05.6]} 6. d4 {[%clk 0:03:04]} 6... cxd4 {[%clk 0:03:06.6]} 7.
Qxd4 {[%clk 0:03:05.1]} 7... Bg7 {[%clk 0:03:07.8]} 8. O-O {[%clk 0:03:04.8]}
8... O-O {[%clk 0:03:08.4]} 9. Qd2 {[%clk 0:03:04.5]} 9... d6 {[%clk 0:03:08.6]}
10. Rd1 {[%clk 0:02:49.2]} 10... Nbd7 {[%clk 0:03:08.4]} 11. Qc2 {[%clk
0:02:49.4]} 11... a6 {[%clk 0:03:03.2]} 12. b3 {[%clk 0:02:50.1]} 12... Rc8
{[%clk 0:03:04.5]} 13. Bb2 {[%clk 0:02:50.8]} 13... b5 {[%clk 0:03:04.5]} 14.
cxb5 {[%clk 0:02:27]} 14... axb5 {[%clk 0:03:04.4]} 15. Qd2 {[%clk 0:02:13.3]}
15... Qb6 {[%clk 0:02:38.6]} 16. Nd4 {[%clk 0:02:06.8]} 16... Bxg2 {[%clk
0:02:36.9]} 17. Kxg2 {[%clk 0:02:08.7]} 17... Qb7+ {[%clk 0:02:33.4]} 18. Kg1
{[%clk 0:02:08.1]} 18... b4 {[%clk 0:02:33.4]} 19. Ncb5 {[%clk 0:01:59.3]} 19...
h5 {[%clk 0:02:13.8]} 20. Qxb4 {[%clk 0:01:54.1]} 20... h4 {[%clk 0:02:15.1]}
21. a4 {[%clk 0:01:53.2]} 21... h3 {[%clk 0:02:14.3]} 22. Nf3 {[%clk 0:01:47.5]}
22... Nc5 {[%clk 0:02:05.4]} 23. Bxf6 {[%clk 0:01:37.2]} 23... Bxf6 {[%clk
0:02:05.6]} 24. Rac1 {[%clk 0:01:38.1]} 24... Kg7 {[%clk 0:01:51.1]} 25. Rc4
{[%clk 0:01:32.2]} 25... Na6 {[%clk 0:01:39.9]} 26. Qd2 {[%clk 0:01:28.6]} 26...
Rxc4 {[%clk 0:01:39.9]} 27. bxc4 {[%clk 0:01:26.8]} 27... Rc8 {[%clk 0:01:40]}
28. Qd5 {[%clk 0:01:16.8]} 28... Qxd5 {[%clk 0:01:27.5]} 29. cxd5 {[%clk
0:01:18.7]} 29... Rc4 {[%clk 0:01:28.2]} 30. Nbd4 {[%clk 0:01:06.9]} 30... Rxa4
{[%clk 0:01:26.5]} 31. e3 {[%clk 0:01:08.1]} 31... Nb4 {[%clk 0:01:24.7]} 32.
Ne2 {[%clk 0:01:07.9]} 32... g5 {[%clk 0:01:17]} 33. Nfd4 {[%clk 0:01:05.2]}
33... Kg6 {[%clk 0:01:12.1]} 34. f3 {[%clk 0:01:04.9]} 34... Nxd5 {[%clk
0:01:09.2]} 35. Kf2 {[%clk 0:01:00.5]} 35... Ra2 {[%clk 0:01:05]} 36. Rc1 {[%clk
0:00:39]} 36... Nb4 {[%clk 0:00:49.8]} 37. Rd1 {[%clk 0:00:31.2]} 37... d5
{[%clk 0:00:41]} 38. Ke1 {[%clk 0:00:24.5]} 38... e6 {[%clk 0:00:39]} 39. Rd2
{[%clk 0:00:24.8]} 39... Ra1+ {[%clk 0:00:36]} 40. Rd1 {[%clk 0:00:21.4]} 40...
Bxd4 {[%clk 0:00:22.9]} 41. Nxd4 {[%clk 0:00:19.8]} 41... Ra2 {[%clk 0:00:23.9]}
42. Rd2 {[%clk 0:00:19.7]} 42... Ra1+ {[%clk 0:00:22.8]} 43. Rd1 {[%clk
0:00:20.6]} 43... Rxd1+ {[%clk 0:00:22.8]} 44. Kxd1 {[%clk 0:00:21.8]} 44... e5
{[%clk 0:00:24.2]} 45. Ne2 {[%clk 0:00:22.2]} 45... f5 {[%clk 0:00:23.4]} 46.
Kd2 {[%clk 0:00:22.2]} 46... g4 {[%clk 0:00:21.7]} 47. fxg4 {[%clk 0:00:20.8]}
47... fxg4 {[%clk 0:00:23.6]} 48. Nc3 {[%clk 0:00:16.2]} 48... Kf5 {[%clk
0:00:21.7]} 49. Nd1 {[%clk 0:00:13.4]} 49... Ke4 {[%clk 0:00:20.4]} 50. Ke2
{[%clk 0:00:14.6]} 50... Kf5 {[%clk 0:00:20.9]} 51. Nf2 {[%clk 0:00:15.8]} 51...
Nc6 {[%clk 0:00:22.1]} 52. Kd3 {[%clk 0:00:15.5]} 52... e4+ {[%clk 0:00:23.5]}
53. Kc3 {[%clk 0:00:15.7]} 53... Ne5 {[%clk 0:00:24.2]} 54. Kd4 {[%clk
0:00:16.9]} 54... Nf3+ {[%clk 0:00:25.8]} 55. Kxd5 {[%clk 0:00:18.3]} 55... Nxh2
{[%clk 0:00:27.4]} 56. Nxe4 {[%clk 0:00:19.8]} 56... Nf1 {[%clk 0:00:28.3]} 57.
Nf2 {[%clk 0:00:18.7]} 57... Nxe3+ {[%clk 0:00:29.1]} 58. Kd4 {[%clk 0:00:19.4]}
58... Nf1 {[%clk 0:00:30.5]} 59. Kd3 {[%clk 0:00:19.5]} 59... Nxg3 {[%clk
0:00:31.4]} 60. Ke3 {[%clk 0:00:20.8]} 60... h2 {[%clk 0:00:31.4]} 0-1

[Event "*** Titled Tuesday Blitz"]
[Site "Chess.com"]
[Date "2019.03.05"]
[Round "1"]
[White "JosefineHeinemann"]
[Black "Barcelona_Guy"]
[Result "1/2-1/2"]
[WhiteElo "2399"]
[BlackElo "2741"]
[TimeControl "180+2"]
[EndTime "13:09:54 PST"]
[Termination "Game drawn by agreement"]

1. e4 {[%clk 0:03:00.6]} 1... e5 {[%clk 0:03:00.7]} 2. Nf3 {[%clk 0:02:59.4]}
2... Nc6 {[%clk 0:03:01.8]} 3. Bb5 {[%clk 0:02:58.1]} 3... a6 {[%clk 0:03:02.8]}
4. Ba4 {[%clk 0:02:59.4]} 4... b5 {[%clk 0:03:03.8]} 5. Bb3 {[%clk 0:02:59.8]}
5... g6 {[%clk 0:03:04.7]} 6. O-O {[%clk 0:02:59.9]} 6... Bg7 {[%clk 0:03:04.7]}
7. c3 {[%clk 0:03:01.1]} 7... Nge7 {[%clk 0:03:04.7]} 8. a4 {[%clk 0:02:59.6]}
8... Bb7 {[%clk 0:02:58.3]} 9. d4 {[%clk 0:02:56.2]} 9... exd4 {[%clk
0:02:58.5]} 10. cxd4 {[%clk 0:02:58.1]} 10... O-O {[%clk 0:02:54.8]} 11. Nc3
{[%clk 0:02:57.9]} 11... b4 {[%clk 0:02:48.7]} 12. Ne2 {[%clk 0:02:58.5]} 12...
d6 {[%clk 0:02:33.5]} 13. Ng3 {[%clk 0:02:52.8]} 13... Na5 {[%clk 0:02:26.6]}
14. Bc2 {[%clk 0:02:53]} 14... c5 {[%clk 0:02:26.8]} 15. Be3 {[%clk 0:02:53.6]}
15... c4 {[%clk 0:02:27.1]} 16. Re1 {[%clk 0:02:44.2]} 16... Rc8 {[%clk
0:02:27.3]} 17. Qd2 {[%clk 0:02:42.7]} 17... Nec6 {[%clk 0:02:19.1]} 18. d5
{[%clk 0:02:37.5]} 18... c3 {[%clk 0:02:16.9]} 19. bxc3 {[%clk 0:02:29.9]} 19...
Bxc3 {[%clk 0:02:15.8]} 20. Qe2 {[%clk 0:02:31.3]} 20... Ne5 {[%clk 0:02:13.9]}
21. Nxe5 {[%clk 0:02:30.5]} 21... dxe5 {[%clk 0:02:13.9]} 22. Rab1 {[%clk
0:02:22.9]} 22... Bxe1 {[%clk 0:02:13.9]} 23. Rxe1 {[%clk 0:02:23.9]} 23... b3
{[%clk 0:02:12.4]} 24. Bd3 {[%clk 0:02:24.1]} 24... Qd7 {[%clk 0:02:07.4]} 25.
Bxa6 {[%clk 0:02:14.1]} 25... Bxa6 {[%clk 0:02:04.8]} 26. Qxa6 {[%clk 0:02:16]}
26... Qxa4 {[%clk 0:02:05.2]} 27. Bh6 {[%clk 0:02:12.3]} 27... Qb4 {[%clk
0:01:58.6]} 28. Rf1 {[%clk 0:02:12.2]} 28... f6 {[%clk 0:01:41.8]} 29. Qe6+
{[%clk 0:02:04.4]} 29... Kh8 {[%clk 0:01:42.4]} 30. d6 {[%clk 0:02:01.4]} 30...
Rce8 {[%clk 0:01:37.4]} 31. Qd5 {[%clk 0:01:58.1]} 31... b2 {[%clk 0:01:26]} 32.
Bxf8 {[%clk 0:01:49.2]} 32... Rxf8 {[%clk 0:01:14.5]} 33. d7 {[%clk 0:01:48.7]}
33... Rd8 {[%clk 0:00:37.8]} 34. Qf7 {[%clk 0:01:48.5]} 34... Qd6 {[%clk
0:00:31.4]} 35. Qa2 {[%clk 0:01:47.2]} 35... Qb6 {[%clk 0:00:26.5]} 36. Rb1
{[%clk 0:01:46.1]} 36... Rxd7 {[%clk 0:00:26.5]} 37. Rxb2 {[%clk 0:01:47.1]}
37... Rd1+ {[%clk 0:00:26.8]} 38. Nf1 {[%clk 0:01:47.1]} 38... Qa6 {[%clk
0:00:20.8]} 39. Re2 {[%clk 0:01:40.5]} 39... Kg7 {[%clk 0:00:18.8]} 40. g3
{[%clk 0:01:41.2]} 40... h5 {[%clk 0:00:19.2]} 41. Kg2 {[%clk 0:01:42.3]} 41...
h4 {[%clk 0:00:20.3]} 42. Ne3 {[%clk 0:01:40.3]} 42... Rd6 {[%clk 0:00:20.9]}
43. Rc2 {[%clk 0:01:32.9]} 43... Qb6 {[%clk 0:00:15.1]} 44. Nc4 {[%clk
0:01:28.9]} 44... Nxc4 {[%clk 0:00:15.7]} 45. Qxc4 {[%clk 0:01:30.8]} 45... Qd4
{[%clk 0:00:10.2]} 46. Qxd4 {[%clk 0:01:28.7]} 46... exd4 {[%clk 0:00:10]} 47.
Rd2 {[%clk 0:01:28.7]} 47... f5 {[%clk 0:00:06.9]} 48. exf5 {[%clk 0:01:29.1]}
48... gxf5 {[%clk 0:00:08.8]} 49. Kf3 {[%clk 0:01:30.7]} 49... Kf6 {[%clk
0:00:09.3]} 50. Kf4 {[%clk 0:01:31.6]} 50... Rd5 {[%clk 0:00:10.5]} 51. gxh4
{[%clk 0:01:31.1]} 51... Rd8 {[%clk 0:00:11.3]} 52. Rd3 {[%clk 0:01:32.1]} 52...
Rh8 {[%clk 0:00:12.1]} 53. Kg3 {[%clk 0:01:33.3]} 53... Rg8+ {[%clk 0:00:13]}
54. Kf3 {[%clk 0:01:32.1]} 54... Ke5 {[%clk 0:00:13.7]} 55. h3 {[%clk
0:01:31.9]} 55... Rh8 {[%clk 0:00:12.8]} 56. Kg3 {[%clk 0:01:32.8]} 56... Rg8+
{[%clk 0:00:14.1]} 57. Kf3 {[%clk 0:01:33.9]} 57... Rg1 {[%clk 0:00:12.2]} 58.
Ra3 {[%clk 0:01:34]} 58... Re1 {[%clk 0:00:07.9]} 59. Ra5+ {[%clk 0:01:34.2]}
59... Kf6 {[%clk 0:00:09.3]} 60. Ra6+ {[%clk 0:01:34.8]} 60... Kf7 {[%clk
0:00:10.7]} 61. Rd6 {[%clk 0:01:35.8]} 61... Re4 {[%clk 0:00:10.2]} 62. h5
{[%clk 0:01:37.1]} 62... Ke7 {[%clk 0:00:11.2]} 63. Rd5 {[%clk 0:01:37.6]} 63...
Ke6 {[%clk 0:00:12.1]} 64. Rd8 {[%clk 0:01:38.9]} 64... Ke7 {[%clk 0:00:13.2]}
65. Rd5 {[%clk 0:01:39.9]} 65... Ke6 {[%clk 0:00:14.5]} 66. Rd8 {[%clk
0:01:41.1]} 66... Rh4 {[%clk 0:00:15.6]} 67. Kg3 {[%clk 0:01:39.4]} 67... Rxh5
{[%clk 0:00:14.4]} 68. Rxd4 {[%clk 0:01:40.3]} 68... Rh8 {[%clk 0:00:15.4]} 69.
Ra4 {[%clk 0:01:41.3]} 69... Kf6 {[%clk 0:00:16.2]} 70. h4 {[%clk 0:01:39.4]}
70... Rg8+ {[%clk 0:00:17]} 71. Kf3 {[%clk 0:01:40.3]} 71... Rb8 {[%clk
0:00:17.6]} 72. Ra6+ {[%clk 0:01:40.5]} 72... Ke5 {[%clk 0:00:17.4]} 73. h5
{[%clk 0:01:41.7]} 73... Rb3+ {[%clk 0:00:17.8]} 74. Kg2 {[%clk 0:01:41.7]}
74... Kf4 {[%clk 0:00:17.7]} 75. h6 {[%clk 0:01:42.4]} 75... Rb7 {[%clk
0:00:19]} 76. Ra4+ {[%clk 0:01:42.7]} 76... Kg5 {[%clk 0:00:19.7]} 77. Ra6
{[%clk 0:01:44.3]} 77... Rh7 {[%clk 0:00:20.3]} 78. Kf3 {[%clk 0:01:44.9]} 78...
Rxh6 {[%clk 0:00:21.4]} 79. Rxh6 {[%clk 0:01:45.8]} 79... Kxh6 {[%clk
0:00:23.3]} 80. Kf4 {[%clk 0:01:47.4]} 80... Kg6 {[%clk 0:00:24.7]} 81. Kf3
{[%clk 0:01:48.5]} 81... Kg5 {[%clk 0:00:25.2]} 82. Kg3 {[%clk 0:01:49.5]}
1/2-1/2